bitfinex/quotes_SOLUSD_20240825
["timestamp","ask_amount","ask_price","bid_price","bid_amount"]
[1724610370471,45.0,159.49,159.46,1.56952082]
[1724610370665,45.0,159.49,159.47,1.56952082]
[1724610370970,45.0,159.49,159.48,1.56952082]
[1724610372058,45.0,159.49,159.48,1.56952058]
[1724610374255,15.0067,159.5,159.48,1.56952058]
[1724610374455,15.0067,159.5,159.45,3.94117901]
[1724610374688,15.0067,159.5,159.46,5.51069187]
[1724610374877,15.0067,159.5,159.47,1.56951286]
[1724610375190,15.0067,159.5,159.45,3.94117901]
[1724610375191,15.0067,159.5,159.46,3.94117901]
[1724610375362,15.0067,159.5,159.45,3.94119168]
[1724610375782,15.0067,159.5,159.46,5.5107168]
[1724610375989,15.0067,159.5,159.47,1.56952512]
[1724610376181,15.0067,159.5,159.48,1.56952512]
[1724610376395,15.0067,159.5,159.49,1.56952512]
[1724610376698,60.0067,159.5,159.44,9.69861232]
[1724610376878,60.0067,159.5,159.45,1.56953202]
[1724610377076,60.0067,159.5,159.46,1.56953202]
[1724610377289,60.0067,159.5,159.47,1.56953202]
[1724610377491,60.0067,159.5,159.48,1.56953202]
[1724610377685,60.0067,159.5,159.44,9.69861232]
[1724610377864,60.0067,159.5,159.45,1.56953319]
[1724610378065,60.0067,159.5,159.46,1.56953319]
[1724610378289,60.0067,159.5,159.47,1.56953319]
[1724610378492,60.0067,159.5,159.48,1.56953319]
[1724610378695,45.0,159.49,159.4,15.9855]
[1724610379001,45.0,159.49,159.41,29.69861232]
[1724610379287,45.0,159.49,159.41,31.26826987]
[1724610379493,45.0,159.49,159.41,29.69861232]
[1724610381774,45.0,159.49,159.43,9.69861232]
[1724610397891,15.0067,159.5,159.45,9.69861232]
[1724610400995,6.3692,159.51,159.47,9.69861232]
[1724610401307,6.3692,159.51,159.44,38.79444928]
[1724610401308,16.1446,159.54,159.49,9.69861232]
[1724610402592,45.0,159.53,159.49,9.69861232]
[1724610404695,16.1446,159.54,159.49,9.69861232]
[1724610405516,16.1446,159.54,159.49,9.69861232]
[1724610409321,6.2446,159.55,159.49,9.69861232]
[1724610409510,45.0,159.54,159.49,9.69861232]
[1724610409716,6.2446,159.55,159.49,9.69861232]
[1724610416424,16.1371,159.58,159.51,9.69861232]
[1724610416622,45.0,159.57,159.51,9.69861232]
[1724610420420,45.0,159.57,159.45,16.0923]
[1724610420620,45.0,159.57,159.5,9.69861232]
[1724610424532,51.2669,159.57,159.46,20.0]
[1724610424715,7.83468934,159.56,159.47,9.69861232]
[1724610424917,45.0,159.55,159.47,9.69861232]
[1724610427219,45.0,159.55,159.49,9.69861232]
[1724610431315,33.45828799,159.54,159.47,1.3875561]
[1724610431636,51.2684,159.53,159.44,9.69861232]
[1724610431821,1.56771091,159.52,159.45,1.3875561]
[1724610432026,1.56771093,159.51,159.45,1.3875561]
[1724610432950,11.26632319,159.5,159.45,1.3875561]
[1724610433235,11.26632319,159.5,159.42,1.38859162]
[1724610433236,12.776,159.48,159.42,1.38859162]
[1724610433414,6.5057,159.48,159.42,1.38859162]
[1724610433614,45.0,159.47,159.39,9.69861232]
[1724610434413,45.0,159.47,159.41,9.69861232]
[1724610439446,45.0,159.47,159.42,1.56970262]
[1724610439616,45.0,159.47,159.43,1.56970262]
[1724610439822,45.0,159.47,159.44,1.56976843]
[1724610440129,45.0,159.47,159.41,9.69861232]
[1724610440437,45.0,159.47,159.42,1.5697689]
[1724610440649,45.0,159.47,159.43,1.5697689]
[1724610440936,45.0,159.47,159.44,1.5697689]
[1724610441146,45.0,159.47,159.41,9.69861232]
[1724610441324,45.0,159.47,159.42,1.5697689]
[1724610441648,45.0,159.47,159.43,1.5697689]
[1724610441831,45.0,159.47,159.41,9.69861232]
[1724610441832,45.0,159.47,159.44,1.5697689]
[1724610442034,45.0,159.47,159.41,9.69861232]
[1724610442236,45.0,159.47,159.42,1.5697606]
[1724610442534,45.0,159.47,159.43,1.5697606]
[1724610442734,45.0,159.47,159.41,9.69861232]
[1724610443048,45.0,159.47,159.42,1.56980209]
[1724610443343,45.0,159.47,159.41,9.69861232]
[1724610443344,45.0,159.47,159.43,1.56980209]
[1724610443544,45.0,159.47,159.42,1.56980209]
[1724610443932,45.0,159.47,159.43,1.56980209]
[1724610444127,45.0,159.47,159.41,9.69861232]
[1724610444128,45.0,159.47,159.44,1.56980209]
[1724610444348,45.0,159.47,159.42,1.56980209]
[1724610444550,45.0,159.47,159.43,1.56980209]
[1724610444725,1.56801775,159.46,159.44,1.56980209]
[1724610444928,45.0,159.47,159.39,1.56977503]
[1724610444929,1.56819982,159.45,159.39,1.56977503]
[1724610445129,45.0,159.47,159.32,379.8]
[1724610445130,1.5682189,159.44,159.4,1.56977503]
[1724610445341,1.5682189,159.44,159.36,1.57003899]
[1724610445645,1.5682189,159.44,159.37,1.57003899]
[1724610445824,1.5682189,159.44,159.38,1.57003899]
[1724610446029,1.5682189,159.44,159.39,1.57003899]
[1724610446227,1.5682189,159.44,159.4,1.57003899]
[1724610446540,1.5682189,159.44,159.37,1.57003899]
[1724610446740,1.5682189,159.44,159.38,1.57003899]
[1724610446944,45.0,159.45,159.39,1.57003899]
[1724610447145,45.0,159.45,159.4,1.57003899]
[1724610447368,45.0,159.45,159.38,1.57003899]
[1724610447539,45.0,159.45,159.39,1.57003899]
[1724610447732,45.0,159.45,159.38,1.57003899]
[1724610447929,45.0,159.45,159.39,1.57003899]
[1724610448154,45.0,159.45,159.38,1.57003899]
[1724610448363,45.0,159.45,159.39,1.57003899]
[1724610448537,45.0,159.45,159.38,1.57003899]
[1724610448736,45.0,159.45,159.39,1.57003899]
[1724610448947,45.0,159.45,159.37,9.69861232]
[1724610449138,45.0,159.45,159.38,1.57000413]
[1724610449437,45.0,159.45,159.39,1.57000413]
[1724610449759,45.0,159.45,159.37,9.69861232]
[1724610449940,45.0,159.45,159.38,1.56999583]
[1724610450140,45.0,159.45,159.39,1.56999583]
[1724610450342,45.0,159.45,159.38,1.56999583]
[1724610450550,45.0,159.45,159.39,1.56999583]
[1724610450734,45.0,159.45,159.37,9.69861232]
[1724610450735,45.0,159.45,159.38,1.56999583]
[1724610453955,17.46333787,159.44,159.37,1.56999583]
[1724610454152,45.0,159.43,159.37,1.56999583]
[1724610454462,1.56845136,159.42,159.37,1.56999583]
[1724610455371,6.5594,159.42,159.37,1.56999583]
[1724610455547,45.0,159.41,159.36,1.56999583]
[1724610456268,45.0,159.41,159.35,29.69861232]
[1724610456442,45.0,159.41,159.36,1.57012905]
[1724610457261,46.56858025,159.41,159.36,1.57012905]
[1724610457963,46.56858025,159.41,159.35,1.57012905]
[1724610458275,46.56858025,159.41,159.34,1.57012905]
[1724610459547,46.56858025,159.41,159.34,21.57012905]
[1724610459957,46.56858025,159.41,159.35,1.57012905]
[1724610460165,45.0,159.41,159.35,1.57012905]
[1724610468287,6.5594,159.42,159.35,11.26874137]
[1724610468451,6.5594,159.42,159.36,1.57012905]
[1724610468652,8.12793289,159.42,159.36,1.57012905]
[1724610468960,6.5594,159.42,159.36,1.57012905]
[1724610469677,6.5594,159.42,159.35,9.69861232]
[1724610469975,6.5594,159.42,159.36,1.57024038]
[1724610470472,6.5594,159.42,159.37,1.57024038]
[1724610470776,6.5594,159.42,159.36,1.57024038]
[1724610470956,6.5594,159.42,159.37,1.57024038]
[1724610471156,6.5594,159.42,159.36,1.57024038]
[1724610471354,6.5594,159.42,159.37,1.57024038]
[1724610471558,6.5594,159.42,159.36,1.57024038]
[1724610471774,6.5594,159.42,159.37,1.57024038]
[1724610471964,6.5594,159.42,159.36,1.57024038]
[1724610472166,6.5594,159.42,159.37,1.57024038]
[1724610472475,6.5594,159.42,159.36,1.57024038]
[1724610472679,6.5594,159.42,159.37,1.57024038]
[1724610472864,6.5594,159.42,159.36,1.57024038]
[1724610473170,6.5594,159.42,159.37,1.57024038]
[1724610473558,6.5594,159.42,159.35,9.69861232]
[1724610473763,6.5594,159.42,159.38,1.57024014]
[1724610473971,6.5594,159.42,159.35,9.69861232]
[1724610477883,1.56853354,159.41,159.35,9.69861232]
[1724610478768,6.5594,159.42,159.35,9.69861232]
[1724610493708,6.5594,159.42,159.36,1.38956181]
[1724610494004,6.5594,159.42,159.37,1.38956181]
[1724610494300,6.5594,159.42,159.38,1.38956181]
[1724610494483,6.5594,159.42,159.39,1.38956181]
[1724610494687,6.5594,159.42,159.4,1.38956181]
[1724610494888,6.5594,159.42,159.41,1.38956181]
[1724610495419,6.5594,159.42,159.35,9.69861232]
[1724610495711,6.5594,159.42,159.41,1.38945435]
[1724610495873,6.5594,159.42,159.41,3.94253365]
[1724610497809,51.5594,159.42,159.41,3.94253365]
[1724610504235,51.5594,159.42,159.34,29.69861232]
[1724610504403,46.56866005,159.41,159.34,29.69861232]
[1724610504608,45.0,159.41,159.34,29.69861232]
[1724610505742,46.56867621,159.41,159.34,29.69861232]
[1724610510950,45.0,159.41,159.34,29.69861232]
[1724610512442,18.0630987,159.4,159.29,30.26132664]
[1724610512622,46.5687982,159.39,159.32,9.69861232]
[1724610515834,45.0,159.39,159.32,9.69861232]
[1724610516028,1.56886151,159.38,159.32,9.69861232]
[1724610516432,45.0,159.39,159.32,9.69861232]
[1724610518029,1.56889962,159.38,159.32,9.69861232]
[1724610518222,6.1124,159.36,159.3,9.69861232]
[1724610518441,1.56903196,159.35,159.31,20.0]
[1724610518760,6.1124,159.36,159.31,20.0]
[1724610520942,6.1124,159.36,159.32,9.69861232]
[1724610524883,6.1124,159.36,159.31,20.0]
[1724610525184,6.1124,159.36,159.31,9.69861232]
[1724610532670,6.1124,159.36,159.33,9.69861232]
[1724610532871,45.0,159.39,159.33,9.69861232]
[1724610534066,45.0,159.39,159.34,1.57061588]
[1724610534267,45.0,159.39,159.35,1.57061588]
[1724610534580,45.0,159.39,159.33,9.69861232]
[1724610534785,45.0,159.39,159.34,1.5706154]
[1724610534982,45.0,159.39,159.35,1.5706154]
[1724610535179,45.0,159.39,159.33,9.69861232]
[1724610538188,22.7297,159.4,159.33,9.69861232]
[1724610538364,22.7297,159.4,159.29,15.4997]
[1724610538365,22.7297,159.4,159.35,9.69861232]
[1724610539898,22.38777987,159.44,159.37,9.69861232]
[1724610540106,22.0926,159.44,159.41,9.69861232]
[1724610540421,22.0926,159.49,159.43,9.69861232]
[1724610541724,45.0,159.48,159.43,9.69861232]
[1724610541892,22.0926,159.49,159.43,9.69861232]
[1724610543322,45.0,159.48,159.43,9.69861232]
[1724610545300,45.0,159.48,159.45,9.69861232]
[1724610547410,22.0926,159.49,159.45,9.69861232]
[1724610547611,27.74299461,159.53,159.47,9.69861232]
[1724610547811,21.2153,159.53,159.47,9.69861232]
[1724610548328,21.2153,159.53,159.42,15.2388]
[1724610548627,21.2153,159.53,159.47,9.69861232]
[1724610548807,45.0,159.52,159.47,9.69861232]
[1724610553837,45.0,159.52,159.43,20.0]
[1724610554010,45.0,159.52,159.46,9.69861232]
[1724610554711,45.0,159.52,159.36,47.8904625]
[1724610554712,15.86381232,159.5,159.36,2.63131322]
[1724610554930,14.0029767,159.5,159.42,9.69861232]
[1724610555254,45.0,159.49,159.42,9.69861232]
[1724610555453,1.56807446,159.48,159.42,9.69861232]
[1724610555756,1.56807446,159.48,159.36,38.79444928]
[1724610555937,17.53738678,159.48,159.39,9.69861232]
[1724610556138,6.1652,159.45,159.37,9.69861232]
[1724610556334,7.73362093,159.45,159.37,9.69861232]
[1724610556531,45.0,159.44,159.37,9.69861232]
[1724610556730,1.56842117,159.43,159.37,9.69861232]
[1724610557049,1.5685096,159.42,159.29,15.2388]
[1724610557254,1.5685096,159.42,159.33,9.69861232]
[1724610561456,11.26712192,159.42,159.3,1.39041373]
[1724610561658,45.0,159.41,159.32,9.69861232]
[1724610561869,45.0,159.41,159.33,20.0]
[1724610562160,1.56872209,159.4,159.33,20.0]
[1724610563559,6.1652,159.38,159.33,20.0]
[1724610563864,1.56892009,159.37,159.3,9.69861232]
[1724610564157,1.56892009,159.37,159.31,20.0]
[1724610564158,46.56892009,159.37,159.31,20.0]
[1724610567664,46.56892009,159.37,159.27,9.69861232]
[1724610569045,46.56892009,159.37,159.28,20.0]
[1724610569983,9.69861232,159.36,159.27,9.69861232]
[1724610570187,9.69861232,159.36,159.28,20.0]
[1724610570188,46.56930587,159.35,159.28,20.0]
[1724610572769,46.56930587,159.35,159.27,20.0]
[1724610573792,31.09521232,159.34,159.23,6.53083448]
[1724610574001,46.56956515,159.33,159.24,9.69861232]
[1724610574161,1.56956637,159.32,159.24,9.69861232]
[1724610576591,45.0,159.33,159.26,9.69861232]
[1724610576974,46.30194948,159.33,159.26,9.69861232]
[1724610577178,1.569617,159.32,159.24,9.69861232]
[1724610577369,1.569617,159.32,159.25,20.0]
[1724610578988,1.569617,159.32,159.23,9.69861232]
[1724610579502,15.0529,159.29,159.22,9.69861232]
[1724610579704,1.56981542,159.28,159.23,20.0]
[1724610580710,15.0529,159.29,159.24,9.69861232]
[1724610581009,16.62253315,159.29,159.24,9.69861232]
[1724610583705,6.3437,159.3,159.24,9.69861232]
[1724610585313,15.0529,159.33,159.28,9.69861232]
[1724610585616,15.0529,159.33,159.23,15.8445]
[1724610585811,15.0529,159.33,159.28,9.69861232]
[1724610588607,21.3884,159.38,159.31,9.69861232]
[1724610588812,21.3884,159.38,159.34,9.69861232]
[1724610590214,21.3884,159.42,159.36,9.69861232]
[1724610592722,21.3884,159.42,159.32,20.0]
[1724610592723,46.5685088,159.41,159.32,20.0]
[1724610593025,46.5685088,159.41,159.33,9.69861232]
[1724610593215,45.0,159.41,159.33,9.69861232]
[1724610594706,1.56879734,159.4,159.33,9.69861232]
[1724610594910,1.56879823,159.39,159.33,9.69861232]
[1724610595106,62.54051078,159.41,159.27,8.74386543]
[1724610595312,6.0356,159.4,159.3,9.69861232]
[1724610595515,45.0,159.39,159.3,9.69861232]
[1724610596506,45.0,159.39,159.31,20.0]
[1724610596927,54.69861232,159.39,159.31,20.0]
[1724610597434,6.0356,159.4,159.34,9.69861232]
[1724610598426,6.0356,159.4,159.36,9.69861232]
[1724610599304,15.3528,159.42,159.38,9.69861232]
[1724610599802,15.3528,159.42,159.39,0.53424656]
[1724610600006,6.4221,159.44,159.4,9.69861232]
[1724610600438,16.0105,159.46,159.42,9.69861232]
[1724610601623,16.0105,159.46,159.38,3.94176483]
[1724610601827,16.0105,159.46,159.38,1.56973481]
[1724610601828,6.4221,159.44,159.38,1.56973481]
[1724610602024,45.0,159.43,159.37,1.56973481]
[1724610602338,45.0,159.43,159.35,25.51267695]
[1724610602523,45.0,159.43,159.36,1.56973481]
[1724610602726,45.0,159.43,159.35,1.56973481]
[1724610602912,1.56853657,159.42,159.35,5.51291389]
[1724610604022,1.56853657,159.42,159.35,5.51291544]
[1724610604237,1.56853657,159.42,159.35,1.56973481]
[1724610604443,1.56853657,159.42,159.35,25.51287106]
[1724610604748,1.56853657,159.42,159.36,1.56973481]
[1724610605042,45.0,159.43,159.36,1.57032262]
[1724610605248,16.0105,159.42,159.33,25.51369387]
[1724610605426,16.0105,159.42,159.34,1.57032262]
[1724610605427,45.0,159.41,159.34,1.57032262]
[1724610605820,45.0,159.41,159.34,5.51371962]
[1724610606514,45.0,159.41,159.34,5.51372865]
[1724610606714,45.0,159.41,159.34,1.57033165]
[1724610608345,6.2635,159.4,159.34,1.57033165]
[1724610608545,45.0,159.39,159.34,1.57033165]
[1724610608778,45.0,159.39,159.32,1.57033165]
[1724610609051,16.0689,159.38,159.31,1.57033165]
[1724610610064,16.0689,159.38,159.31,21.57033165]
[1724610610235,16.0689,159.38,159.32,1.57033165]
[1724610610862,16.0689,159.38,159.31,5.5145185]
[1724610611779,16.0689,159.38,159.32,1.57033165]
[1724610613242,16.0689,159.38,159.31,5.5145185]
[1724610615464,16.0689,159.38,159.32,1.57033165]
[1724610616185,16.0689,159.38,159.31,1.57033165]
[1724610616558,16.0689,159.38,159.31,5.51461012]
[1724610621079,16.0689,159.38,159.31,3.94427847]
[1724610621295,45.0,159.37,159.31,5.51491139]
[1724610621458,6.3566,159.36,159.3,20.0]
[1724610621658,6.3566,159.36,159.31,1.57065284]
[1724610622052,6.3566,159.36,159.29,9.69091862]
[1724610622253,6.3566,159.36,159.3,20.0]
[1724610622768,6.3566,159.36,159.31,9.69091862]
[1724610627597,6.3566,159.36,159.3,20.0]
[1724610627806,6.3566,159.36,159.3,26.61850447]
[1724610628809,6.3566,159.36,159.3,20.0]
[1724610629299,6.3566,159.36,159.26,8.74386543]
[1724610629300,46.56904151,159.35,159.27,9.69091862]
[1724610629603,46.56904151,159.35,159.28,20.0]
[1724610629786,46.56904151,159.35,159.28,26.61851992]
[1724610629988,46.56904151,159.35,159.28,6.61851992]
[1724610630205,46.56904151,159.35,159.27,16.30943854]
[1724610630901,46.56904151,159.35,159.27,9.69091862]
[1724610631215,46.56904151,159.35,159.28,20.0]
[1724610631389,46.56904151,159.35,159.28,26.61856803]
[1724610633013,46.56904151,159.35,159.29,6.6186197]
[1724610633291,46.56904151,159.35,159.28,26.6186197]
[1724610633990,46.56904151,159.35,159.29,1.39158137]
[1724610635592,45.0,159.35,159.29,11.08249999]
[1724610635798,6.3566,159.36,159.31,9.69091862]
[1724610636425,6.3566,159.36,159.3,1.39158137]
[1724610636593,45.0,159.35,159.29,1.39158137]
[1724610636793,45.0,159.35,159.29,8.01020107]
[1724610639336,16.0067,159.34,159.29,8.01020107]
[1724610639619,16.0067,159.34,159.25,9.69091862]
[1724610639620,6.1183,159.32,159.25,9.69091862]
[1724610639794,6.1183,159.32,159.26,1.39219184]
[1724610639995,45.0,159.31,159.26,1.39219184]
[1724610640209,45.0,159.31,159.25,9.69091862]
[1724610640415,45.0,159.31,159.25,11.08311046]
[1724610640599,45.0,159.31,159.25,9.69091862]
[1724610646516,45.0,159.31,159.27,9.69091862]
[1724610646699,6.1183,159.32,159.27,9.69091862]
[1724610649629,6.1183,159.32,159.27,9.69091862]
[1724610654531,16.0067,159.34,159.31,9.69091862]
[1724610656370,16.0067,159.34,159.29,9.69091862]
[1724610660846,16.0067,159.34,159.28,9.69091862]
[1724610661070,45.0,159.33,159.28,9.69091862]
[1724610661545,46.56941214,159.33,159.28,9.69091862]
[1724610662463,45.0,159.33,159.28,9.69091862]
[1724610665446,16.0067,159.34,159.28,9.69091862]
[1724610665845,16.0067,159.34,159.3,9.69091862]
[1724610666248,6.1893,159.36,159.32,9.69091862]
[1724610666574,6.1893,159.36,159.34,9.69091862]
[1724610671454,16.5719,159.38,159.34,9.69091862]
[1724610675285,16.5719,159.38,159.32,9.69091862]
[1724610675600,45.0,159.37,159.32,9.69091862]
[1724610677176,16.5719,159.38,159.32,9.69091862]
[1724610677368,16.5719,159.38,159.34,9.69091862]
[1724610680185,6.6071,159.4,159.34,9.69091862]
[1724610682004,6.6071,159.4,159.35,1.57043122]
[1724610682303,6.6071,159.4,159.36,1.57043122]
[1724610682481,6.6071,159.4,159.34,9.69091862]
[1724610682482,6.6071,159.4,159.35,1.57043122]
[1724610682787,6.6071,159.4,159.36,1.57043122]
[1724610682994,6.6071,159.4,159.34,9.69091862]
[1724610683197,6.6071,159.4,159.35,1.57043952]
[1724610683505,6.6071,159.4,159.34,9.69091862]
[1724610683714,6.6071,159.4,159.36,1.57043928]
[1724610684200,6.6071,159.4,159.35,1.57043928]
[1724610684410,6.6071,159.4,159.36,1.57043928]
[1724610684575,6.6071,159.4,159.35,1.57043928]
[1724610689408,6.6071,159.4,159.35,1.57047594]
[1724610690195,6.6071,159.4,159.35,1.57048424]
[1724610692192,6.6071,159.4,159.36,1.57048424]
[1724610692397,6.6071,159.4,159.35,1.57048424]
[1724610692697,6.6071,159.4,159.36,1.57048424]
[1724610692996,6.6071,159.4,159.35,1.57048424]
[1724610693315,6.6071,159.4,159.36,11.26140286]
[1724610693522,15.5411,159.42,159.38,9.69091862]
[1724610694027,6.4671,159.44,159.38,9.69091862]
[1724610694198,6.4671,159.44,159.4,9.69091862]
[1724610694530,6.4671,159.44,159.36,38.76367448]
[1724610694696,6.4671,159.44,159.4,9.69091862]
[1724610697520,15.8835,159.46,159.4,9.69091862]
[1724610697722,15.8835,159.46,159.42,9.69091862]
[1724610703413,15.8835,159.46,159.41,9.69091862]
[1724610704337,6.4671,159.48,159.42,0.89185928]
[1724610704516,6.4671,159.48,159.44,9.69091862]
[1724610708608,6.4671,159.48,159.38,15.9641]
[1724610708833,45.0,159.47,159.41,9.69091862]
[1724610709935,45.0,159.47,159.37,28.74386543]
[1724610710115,16.509,159.45,159.39,9.69091862]
[1724610714931,16.509,159.45,159.37,9.69091862]
[1724610715121,6.6398,159.43,159.37,9.69091862]
[1724610715323,7.84114214,159.42,159.33,8.74386543]
[1724610715523,7.84114214,159.42,159.35,9.69091862]
[1724610715524,1.56844214,159.42,159.35,9.69091862]
[1724610715728,46.56844214,159.42,159.35,9.69091862]
[1724610716444,45.0,159.42,159.35,9.69091862]
[1724610717019,16.509,159.41,159.33,18.43478405]
[1724610717249,45.0,159.4,159.33,18.43478405]
[1724610717436,1.56878983,159.39,159.33,18.43478405]
[1724610717812,45.0,159.4,159.33,18.43478405]
[1724610721031,45.0,159.4,159.33,9.69091862]
[1724610721423,16.509,159.41,159.33,9.69091862]
[1724610721640,16.509,159.41,159.35,9.69091862]
[1724610728539,16.509,159.41,159.37,9.69091862]
[1724610732754,16.509,159.41,159.35,9.69091862]
[1724610743485,16.509,159.41,159.36,3.94324804]
[1724610745787,16.509,159.41,159.36,3.94331189]
[1724610747468,16.509,159.41,159.37,3.94331189]
[1724610747666,16.509,159.41,159.36,3.94331189]
[1724610747870,16.509,159.41,159.37,3.94331189]
[1724610748074,16.509,159.41,159.36,3.94331189]
[1724610748278,16.509,159.41,159.37,3.94331189]
[1724610748582,16.509,159.41,159.36,3.94331189]
[1724610748880,16.509,159.41,159.37,3.94331189]
[1724610749109,16.509,159.41,159.36,3.94331189]
[1724610749274,16.509,159.41,159.37,3.94331113]
[1724610749462,16.509,159.41,159.36,3.94331113]
[1724610749660,16.509,159.41,159.37,3.94331113]
[1724610749864,16.509,159.41,159.36,3.94331113]
[1724610750081,16.509,159.41,159.37,3.94331113]
[1724610750299,16.509,159.41,159.36,3.94331113]
[1724610750495,16.509,159.41,159.37,3.94331113]
[1724610750689,16.509,159.41,159.36,3.94331113]
[1724610751002,16.509,159.41,159.37,3.94331113]
[1724610751292,16.509,159.41,159.36,3.94331113]
[1724610751601,16.509,159.41,159.37,3.94331113]
[1724610751894,16.509,159.41,159.38,3.94331113]
[1724610752092,16.509,159.41,159.36,3.94331113]
[1724610752282,16.509,159.41,159.37,3.94331113]
[1724610752491,6.6398,159.43,159.38,3.94331113]
[1724610752796,6.6398,159.43,159.39,13.63422975]
[1724610753106,6.6398,159.43,159.4,3.94331113]
[1724610753603,6.6398,159.43,159.39,16.3066297]
[1724610753784,6.6398,159.43,159.4,5.51306541]
[1724610754094,6.6398,159.43,159.41,1.57015421]
[1724610754291,6.6398,159.43,159.42,1.57015421]
[1724610755365,6.6398,159.43,159.42,5.51304143]
[1724610755572,15.3427,159.45,159.42,5.51304143]
[1724610755870,15.3427,159.45,159.43,5.51304143]
[1724610756076,15.3427,159.45,159.44,1.57015421]
[1724610756588,15.3427,159.45,159.44,5.51224454]
[1724610759876,15.3427,159.45,159.44,5.51147993]
[1724610760204,6.6599,159.47,159.44,5.51147993]
[1724610760404,15.3427,159.49,159.45,4.83219813]
[1724610760606,15.3427,159.49,159.46,5.5113979]
[1724610760801,15.3427,159.49,159.47,1.56972953]
[1724610760978,15.3427,159.49,159.48,1.56972953]
[1724610761701,15.3427,159.49,159.48,1.56946525]
[1724610762509,15.3427,159.49,159.46,1.56946525]
[1724610762684,15.3427,159.49,159.47,1.56946525]
[1724610763000,15.3427,159.49,159.44,3.94100457]
[1724610763308,15.3427,159.49,159.45,1.56947449]
[1724610763482,15.3427,159.49,159.46,1.56947449]
[1724610763807,15.3427,159.49,159.47,1.56947449]
[1724610763987,15.3427,159.49,159.44,3.94100457]
[1724610764184,15.3427,159.49,159.45,1.56947449]
[1724610764380,15.3427,159.49,159.46,1.56947449]
[1724610764682,15.3427,159.49,159.44,1.38817353]
[1724610764896,15.3427,159.49,159.45,1.56949059]
[1724610765094,15.3427,159.49,159.46,1.56949059]
[1724610765272,15.3427,159.49,159.47,1.56949059]
[1724610765478,15.3427,159.49,159.45,1.56949059]
[1724610765679,15.3427,159.49,159.46,1.56949059]
[1724610765897,15.3427,159.49,159.44,5.3291781]
[1724610766105,15.3427,159.49,159.45,1.56947401]
[1724610766295,15.3427,159.49,159.46,1.56947401]
[1724610766603,15.3427,159.49,159.44,3.94100457]
[1724610766810,15.3427,159.49,159.45,1.56947401]
[1724610766979,15.3427,159.49,159.46,1.56947401]
[1724610767180,15.3427,159.49,159.44,1.56947401]
[1724610767374,15.3427,159.49,159.44,5.51047858]
[1724610767586,15.3427,159.49,159.45,1.56947401]
[1724610767817,15.3427,159.49,159.46,1.56947401]
[1724610768103,15.3427,159.49,159.45,1.56947401]
[1724610768308,15.3427,159.49,159.46,1.56947401]
[1724610768483,15.3427,159.49,159.45,1.56947401]
[1724610769213,15.3427,159.49,159.44,1.56947401]
[1724610769388,15.3427,159.49,159.45,1.56947401]
[1724610769589,15.3427,159.49,159.44,5.51052665]
[1724610769803,15.3427,159.49,159.45,1.56947401]
[1724610769991,15.3427,159.49,159.45,1.56947425]
[1724610771109,15.3427,159.49,159.44,1.56948274]
[1724610771316,15.3427,159.49,159.45,1.56948274]
[1724610771498,15.3427,159.49,159.44,1.56948274]
[1724610772100,15.3427,159.49,159.43,9.69091862]
[1724610772416,15.3427,159.49,159.44,1.56947449]
[1724610775412,15.3427,159.49,159.43,15.20144639]
[1724610775720,15.3427,159.49,159.44,1.56947449]
[1724610776744,15.3427,159.49,159.43,13.63201358]
[1724610776745,15.3427,159.49,159.43,9.69091862]
[1724610777014,15.3427,159.49,159.44,1.56948046]
[1724610777199,15.3427,159.49,159.43,11.26039908]
[1724610777399,15.3427,159.49,159.43,9.69091862]
[1724610777607,15.3427,159.49,159.43,11.26039908]
[1724610777790,15.3427,159.49,159.43,9.69091862]
[1724610777993,15.3427,159.49,159.44,1.56948046]
[1724610780185,6.6599,159.52,159.45,9.69091862]
[1724610780400,6.6599,159.52,159.45,11.26039908]
[1724610780614,6.6599,159.52,159.45,9.69091862]
[1724610781418,6.6599,159.52,159.47,9.69091862]
[1724610782621,6.6599,159.52,159.45,1.56937865]
[1724610782818,6.6599,159.52,159.45,9.69091862]
[1724610783108,6.6599,159.52,159.46,20.0]